fUST/lending_fUST_20240901
["ID","MTS","AMOUNT","RATE_DAILY","PERIOD"]
[336820672,1725190277315,-3000.0,0.0003053,4]
[336820673,1725190277324,-3000.0,0.0003053,4]
[336820674,1725190277333,-3248.116651,0.0003054,4]
[336820675,1725190277342,-3000.0,0.0003054,4]
[336820676,1725190277351,-863.56801204,0.00030544,2]
[336820677,1725190277362,-500.0,0.00030547,15]
[336820678,1725190277371,-500.0,0.00030547,7]
[336820679,1725190277379,-786.16,0.00030547,15]
[336820680,1725190277388,-500.0,0.00030547,15]
[336820681,1725190277397,-500.0,0.00030547,15]
[336820682,1725190277407,-500.0,0.00030547,15]
[336820683,1725190277416,-394.57856817,0.00030547,15]
[336820684,1725190277425,-500.0,0.00030547,15]
[336820685,1725190277434,-540.19,0.00030547,15]
[336820686,1725190277444,-500.0,0.00030547,15]
[336820687,1725190277453,-500.0,0.00030547,15]
[336820688,1725190277463,-500.0,0.00030547,15]
[336820689,1725190277473,-500.0,0.00030547,15]
[336820690,1725190277483,-518.91,0.00030547,15]
[336820691,1725190277492,-500.0,0.00030547,15]
[336820692,1725190277501,-500.0,0.00030547,15]
[336820693,1725190277512,-500.0,0.00030547,15]
[336820694,1725190277521,-661.85,0.00030547,15]
[336820695,1725190277530,-500.0,0.00030547,15]
[336820696,1725190277540,-500.0,0.00030547,15]
[336820697,1725190277550,-913.52,0.00030547,15]
[336820698,1725190277566,-835.91,0.00030547,14]
[336820699,1725190277575,-500.0,0.00030547,15]
[336820700,1725190277585,-724.67,0.00030547,7]
[336820701,1725190277595,-500.0,0.00030547,15]
[336820702,1725190277608,-648.99,0.00030547,15]
[336820703,1725190277618,-500.0,0.00030547,15]
[336820704,1725190277629,-500.0,0.00030547,15]
[336820705,1725190277640,-500.0,0.00030547,15]
[336820706,1725190277651,-500.0,0.00030547,15]
[336820707,1725190277660,-500.0,0.00030547,15]
[336820708,1725190277670,-500.0,0.00030547,15]
[336820709,1725190277679,-942.02,0.00030547,15]
[336820710,1725190277688,-506.22174722,0.00030547,15]
[336820711,1725190277697,-500.0,0.00030547,15]
[336820712,1725190277706,-500.0,0.00030547,15]
[336820713,1725190277715,-587.5167475,0.00030547,15]
[336820714,1725190277725,-500.0,0.00030547,15]
[336820715,1725190277734,-504.9,0.00030547,15]
[336820716,1725190277744,-1393.67,0.00030547,15]
[336820717,1725190277753,-500.0,0.00030547,15]
[336820718,1725190277763,-500.0,0.00030547,15]
[336820719,1725190277772,-500.0,0.00030547,15]
[336820720,1725190277782,-497.34361056,0.00030547,15]
[336820721,1725190277791,-500.0,0.00030547,15]
[336820722,1725190277800,-500.0,0.00030547,15]
[336820723,1725190277809,-500.0,0.00030547,15]
[336820724,1725190277819,-508.30466131,0.00030547,15]
[336820725,1725190277829,-500.0,0.00030547,15]
[336820726,1725190277838,-500.0,0.00030547,15]
[336820727,1725190277848,-500.0,0.00030547,15]
[336820728,1725190277857,-500.0,0.00030547,15]
[336820729,1725190277867,-500.0,0.00030547,15]
[336820730,1725190277877,-500.0,0.00030547,15]
[336820731,1725190277886,-696.53,0.00030547,15]
[336820732,1725190277895,-500.0,0.00030547,15]
[336820733,1725190277904,-500.0,0.00030547,15]
[336820734,1725190277913,-613.05,0.00030547,15]
[336820735,1725190277923,-747.54,0.00030547,15]
[336820736,1725190277932,-504.00057161,0.00030547,15]
[336820737,1725190277942,-500.0,0.00030547,15]
[336820738,1725190277952,-500.0,0.00030547,15]
[336820739,1725190277962,-500.0,0.00030547,15]
[336820740,1725190277971,-189.63033718,0.00030547,15]
[336820741,1725190277981,-500.0,0.00030547,15]
[336820742,1725190277991,-500.0,0.00030547,15]
[336820743,1725190278000,-500.0,0.00030547,15]
[336820744,1725190278010,-500.0,0.00030547,15]
[336820745,1725190278022,-805.77,0.00030547,15]
[336820746,1725190278033,-500.0,0.00030547,15]
[336820747,1725190278043,-185.95936535,0.00030547,15]
[336820748,1725190278054,-500.0,0.00030547,15]
[336820749,1725190278063,-500.0,0.00030547,15]
[336820750,1725190278073,-500.0,0.00030547,15]
[336820751,1725190278083,-3000.0,0.0003055,4]
[336820752,1725190278093,-3000.0,0.0003056,4]
[336820753,1725190278104,-3000.0,0.0003057,4]
[336820754,1725190278114,-3000.0,0.0003058,4]
[336820755,1725190278124,-3000.0,0.0003059,4]
[336820756,1725190278134,-300.0,0.0003059,2]
[336820757,1725190278145,-775.42,0.00030591,15]
[336820758,1725190278155,-959.6,0.00030591,15]
[336820759,1725190278165,-842.14,0.00030591,15]
[336820760,1725190278175,-621.06,0.00030591,15]
[336820761,1725190278186,-500.0,0.00030591,15]
[336820762,1725190278195,-500.0,0.00030591,15]
[336820763,1725190278205,-500.0,0.00030591,15]
[336820764,1725190278215,-764.71,0.00030591,15]
[336820765,1725190278225,-902.52,0.00030591,15]
[336820766,1725190278237,-504.7,0.00030591,15]
[336820767,1725190278248,-608.1,0.00030591,15]
[336820768,1725190278259,-500.0,0.00030591,15]
[336820769,1725190278268,-500.0,0.00030591,15]
[336820770,1725190278278,-415.64394168,0.00030591,15]
[336820771,1725190278288,-500.0,0.00030591,15]
[336820772,1725190278297,-639.82,0.00030591,15]
[336820773,1725190278307,-415.03147948,0.00030591,15]
[336820774,1725190278316,-1407.61,0.00030591,15]
[336820775,1725190278326,-460.75992937,0.00030591,15]
[336820776,1725190278336,-3782.96,0.00030591,15]
[336820777,1725190278348,-500.0,0.00030591,15]
[336820778,1725190278360,-1698.8,0.00030591,15]
[336820779,1725190278369,-500.0,0.00030591,15]
[336820780,1725190278378,-618.8,0.00030591,15]
[336820781,1725190278390,-500.0,0.00030591,15]
[336820782,1725190278400,-581.82,0.00030591,15]
[336820783,1725190278410,-1590.55,0.00030591,15]
[336820784,1725190278421,-500.0,0.00030591,15]
[336820785,1725190278431,-500.0,0.00030591,2]
[336820786,1725190278440,-814.38,0.00030591,15]
[336820787,1725190278450,-578.66,0.00030591,15]
[336820788,1725190278459,-805.46,0.00030591,15]
[336820789,1725190278468,-500.0,0.00030591,15]
[336820790,1725190278478,-1051.47,0.00030591,15]
[336820791,1725190278487,-500.0,0.00030591,15]
[336820792,1725190278496,-500.0,0.00030591,15]
[336820793,1725190278505,-1759.62,0.00030591,15]
[336820794,1725190278515,-914.92,0.00030591,15]
[336820795,1725190278525,-681.67,0.00030591,15]
[336820796,1725190278535,-1238.85,0.00030591,15]
[336820797,1725190278544,-500.0,0.00030591,15]
[336820798,1725190278555,-500.0,0.00030591,15]
[336820799,1725190278565,-298.09377482,0.00030591,15]
[336820800,1725190278575,-500.0,0.00030591,15]
[336820801,1725190278584,-590.69481382,0.000306,2]
[336820802,1725190278593,-590.69481379,0.000306,2]
[336820803,1725190278604,-590.69481379,0.000306,2]
[336820804,1725190278613,-590.69481379,0.000306,2]
[336820805,1725190278622,-3000.0,0.000306,4]
[336820806,1725190278632,-3000.0,0.000306,30]
[336820807,1725190278641,-3000.0,0.000306,4]
[336820808,1725190278651,-1000.0,0.00030601,2]
[336820809,1725190278660,-3591.66440163,0.00030604,30]
[336820810,1725190278670,-3000.0,0.0003061,4]
[336820811,1725190278680,-3000.0,0.0003061,30]
[336820812,1725190278689,-3000.0,0.0003061,4]
[336820813,1725190278699,-3000.0,0.0003062,4]
[336820814,1725190278708,-3000.0,0.0003062,30]
[336820815,1725190278717,-3000.0,0.0003062,4]
[336820816,1725190278728,-1000.0,0.00030624,2]
[336820817,1725190278738,-3000.0,0.0003063,4]
[336820818,1725190278748,-3000.0,0.0003063,30]
[336820819,1725190278759,-3000.0,0.0003063,4]
[336820820,1725190278768,-3000.0,0.0003064,5]
[336820821,1725190278778,-3000.0,0.0003064,30]
[336820822,1725190278898,-3000.0,0.0003064,5]
[336820823,1725190278908,-3000.0,0.0003065,5]
[336820824,1725190278918,-3000.0,0.0003065,30]
[336820825,1725190278928,-3000.0,0.0003065,5]
[336820826,1725190278937,-3000.0,0.0003066,5]
[336820827,1725190278946,-3000.0,0.0003066,30]
[336820828,1725190278956,-3000.0,0.0003066,5]
[336820829,1725190278965,-3000.0,0.0003067,5]
[336820830,1725190278975,-3000.0,0.0003067,30]
[336820831,1725190278984,-3000.0,0.0003067,5]
[336820832,1725190278994,-3000.0,0.0003068,5]
[336820833,1725190279004,-3000.0,0.0003068,30]
[336820834,1725190279013,-3000.0,0.0003068,5]
[336820835,1725190279023,-5021.96,0.00030681,15]
[336820836,1725190279033,-741.43,0.00030681,15]
[336820837,1725190279043,-1278.04,0.00030681,15]
[336820838,1725190279053,-960.88,0.00030681,15]
[336820839,1725190279063,-1153.21,0.00030681,15]
[336820840,1725190279074,-815.48,0.00030681,15]
[336820841,1725190279083,-21602.6,0.00030681,15]
[336820842,1725190279093,-1097.19,0.00030681,15]
[336820843,1725190279103,-500.0,0.00030681,15]
[336820844,1725190279113,-1235.74,0.00030681,15]
[336820845,1725190279123,-7508.14,0.00030681,15]
[336820846,1725190279134,-4510.39,0.00030681,15]
[336820847,1725190279143,-553.99,0.00030681,15]
[336820848,1725190279153,-5144.95,0.00030681,15]
[336820849,1725190279164,-500.0,0.00030682,15]
[336820850,1725190279173,-1750.1,0.00030682,15]
[336820851,1725190279183,-500.0,0.00030682,15]
[336820852,1725190279192,-2695.32,0.00030682,15]
[336820853,1725190279202,-4145.03,0.00030682,15]
[336820854,1725190279212,-4014.95,0.00030682,15]
[336820855,1725190279222,-500.0,0.00030682,15]
[336820856,1725190279231,-7452.19,0.00030682,15]
[336820857,1725190279241,-32741.1,0.00030682,8]
[336820858,1725190279250,-1410.77,0.00030682,15]
[336820859,1725190279260,-3313.62,0.00030682,15]
[336820860,1725190279271,-533.66,0.00030682,15]
[336820861,1725190279282,-1583.29,0.00030682,15]
[336820862,1725190279292,-2691.19,0.00030682,15]
[336820863,1725190279301,-2520.25,0.00030682,15]
[336820864,1725190279311,-197.58060949,0.00030682,15]
[336820865,1725190279320,-891.84,0.00030682,15]
[336820866,1725190279329,-1013.73,0.00030682,15]
[336820867,1725190279339,-8501.03,0.00030682,15]
[336820868,1725190279350,-936.11,0.00030682,15]
[336820869,1725190279360,-3466.34,0.00030682,15]
[336820870,1725190279370,-574.88,0.00030682,15]
[336820871,1725190279380,-4031.65,0.00030682,15]
[336820872,1725190279390,-1852.87,0.00030682,15]
[336820873,1725190279399,-2143.4,0.00030683,15]
[336820874,1725190279409,-500.0,0.00030683,15]
[336820875,1725190279419,-500.0,0.00030683,15]
[336820876,1725190279429,-913.5,0.00030683,15]
[336820877,1725190279439,-957.06,0.00030683,15]
[336820878,1725190279449,-607.13,0.00030683,15]
[336820879,1725190279458,-517.17463084,0.00030683,15]
[336820880,1725190279468,-1295.04,0.00030683,15]
[336820881,1725190279478,-500.0,0.00030683,15]
[336820882,1725190279488,-581.19,0.00030683,15]
[336820883,1725190279497,-500.0,0.00030683,15]
[336820884,1725190279507,-500.0,0.00030683,15]
[336820885,1725190279517,-540.26,0.00030683,15]
[336820886,1725190279528,-1687.85,0.00030683,15]
[336820887,1725190279537,-151.0,0.00030683,6]
[336820888,1725190279547,-1256.23,0.00030683,15]
[336820889,1725190279560,-500.0,0.00030683,15]
[336820890,1725190279571,-670.09,0.00030683,15]
[336820891,1725190279582,-910.82,0.00030683,15]
[336820892,1725190279593,-710.04,0.00030683,15]
[336820893,1725190279603,-500.0,0.00030683,15]
[336820894,1725190279613,-1102.69,0.00030683,15]
[336820895,1725190279622,-1190.65,0.00030683,15]
[336820896,1725190279633,-556.69,0.00030683,15]
[336820897,1725190279644,-2371.33,0.00030683,15]
[336820898,1725190279654,-500.0,0.00030683,15]
[336820899,1725190279663,-560.63,0.00030683,15]
[336820900,1725190279673,-1985.26,0.00030683,15]
[336820901,1725190279682,-6498.82,0.00030683,15]
[336820902,1725190279692,-500.0,0.00030683,15]
[336820903,1725190279701,-542.64,0.00030683,15]
[336820904,1725190279712,-500.0,0.00030683,15]
[336820905,1725190279721,-500.0,0.00030683,15]
[336820906,1725190279730,-500.0,0.00030683,15]
[336820907,1725190279741,-834.9,0.00030683,15]
[336820908,1725190279751,-500.0,0.00030683,15]
[336820909,1725190279761,-1619.73,0.00030683,15]
[336820910,1725190279770,-1079.6,0.00030683,15]
[336820911,1725190279780,-623.31,0.00030683,15]
[336820912,1725190279790,-743.79,0.00030683,15]
[336820913,1725190279799,-500.0,0.00030683,15]
[336820914,1725190279809,-708.75,0.00030683,15]
[336820915,1725190279818,-1914.34,0.00030683,15]
[336820916,1725190279827,-3913.52,0.00030683,15]
[336820917,1725190279836,-5515.16,0.00030683,15]
[336820918,1725190279845,-1204.33,0.00030683,15]
[336820919,1725190279854,-1053.79,0.00030683,15]
[336820920,1725190279864,-500.0,0.00030683,15]
[336820921,1725190279874,-500.0,0.00030683,15]
[336820922,1725190279885,-13912.41,0.00030683,15]
[336820923,1725190279894,-579.21,0.00030683,15]
[336820924,1725190279903,-1301.12,0.00030683,15]
[336820925,1725190279913,-1121.35,0.00030683,15]
[336820926,1725190279923,-500.0,0.00030683,15]
[336820927,1725190279934,-500.0,0.00030684,15]
[336820928,1725190279945,-567.53,0.00030684,15]
[336820929,1725190279955,-1049.89,0.00030684,15]
[336820930,1725190279966,-500.0,0.00030684,15]
[336820931,1725190279975,-500.0,0.00030684,15]
[336820932,1725190279985,-641.71185356,0.00030684,15]
[336820933,1725190279995,-761.9,0.00030684,15]
[336820934,1725190280004,-795.65,0.00030684,15]
[336820935,1725190280013,-764.37,0.00030684,15]
[336820936,1725190280022,-629.77,0.00030684,15]
[336820937,1725190280032,-1215.96,0.00030684,15]
[336820938,1725190280042,-500.0,0.00030684,15]
[336820939,1725190280051,-1170.7,0.00030684,15]
[336820940,1725190280061,-500.0,0.00030684,15]
[336820941,1725190280071,-500.0,0.00030684,15]
[336820942,1725190280080,-642.09,0.00030684,15]
[336820943,1725190280090,-1085.86,0.00030684,15]
[336820944,1725190280099,-739.39,0.00030684,15]
[336820945,1725190280109,-968.22,0.00030684,15]
[336820946,1725190280118,-500.0,0.00030684,15]
[336820947,1725190280127,-500.0,0.00030684,15]
[336820948,1725190280137,-1115.8,0.00030684,15]
[336820949,1725190280149,-500.0,0.00030684,15]
[336820950,1725190280159,-731.19,0.00030684,15]
[336820951,1725190280169,-535.55,0.00030684,15]
[336820952,1725190280179,-668.48,0.00030684,15]
[336820953,1725190280189,-483.00432878,0.00030684,15]
[336820954,1725190280200,-802.33,0.00030684,15]
[336820955,1725190280210,-500.0,0.00030684,15]
[336820956,1725190280222,-500.0,0.00030684,15]
[336820957,1725190280233,-500.0,0.00030684,15]
[336820958,1725190280244,-3000.0,0.0003069,5]
[336820959,1725190280254,-3000.0,0.0003069,30]
[336820960,1725190280264,-3000.0,0.0003069,5]
[336820961,1725190280276,-3000.0,0.000307,5]
[336820962,1725190280287,-3000.0,0.000307,30]
[336820963,1725190280296,-3000.0,0.000307,5]
[336820964,1725190280307,-4165.433403,0.0003071,5]
[336820965,1725190280316,-3000.0,0.0003071,30]
[336820966,1725190280326,-3000.0,0.0003071,5]
[336820967,1725190280335,-600.0,0.00030712,55]
[336820968,1725190280344,-600.0,0.00030712,55]
[336820969,1725190280353,-600.0,0.00030712,55]
[336820970,1725190280361,-600.0,0.00030712,55]
[336820971,1725190280372,-3000.0,0.0003072,30]
[336820972,1725190280380,-3000.0,0.0003072,5]
[336820973,1725190280390,-3000.0,0.0003073,30]
[336820974,1725190280400,-3000.0,0.0003073,5]
[336820975,1725190280409,-3000.0,0.0003074,30]
[336820976,1725190280420,-3000.0,0.0003074,5]
[336820977,1725190280430,-3582.716701,0.0003075,30]
[336820978,1725190280442,-3000.0,0.0003075,5]
[336820979,1725190280455,-501.83488869,0.00030753,15]
[336820980,1725190280464,-3000.0,0.0003076,5]
[336820981,1725190280473,-3000.0,0.0003077,5]
[336820982,1725190280484,-3000.0,0.0003078,5]
[336820983,1725190280494,-3000.0,0.0003079,5]
[336820984,1725190280504,-3000.0,0.000308,5]
[336820985,1725190280516,-3000.0,0.0003081,5]
[336820986,1725190280526,-3000.0,0.0003082,5]
[336820987,1725190280535,-524.54605929,0.00030821,15]
[336820988,1725190280544,-500.0,0.00030821,7]
[336820989,1725190280558,-786.16,0.00030821,15]
[336820990,1725190280568,-500.0,0.00030821,15]
[336820991,1725190280578,-500.0,0.00030821,15]
[336820992,1725190280588,-501.54095349,0.00030821,15]
[336820993,1725190280599,-500.0,0.00030821,15]
[336820994,1725190280608,-540.19,0.00030821,15]
[336820995,1725190280617,-505.11571063,0.00030821,15]
[336820996,1725190280626,-500.0,0.00030821,15]
[336820997,1725190280636,-500.0,0.00030821,15]
[336820998,1725190280645,-500.0,0.00030821,15]
[336820999,1725190280654,-518.91,0.00030821,15]
[336821000,1725190280663,-500.0,0.00030821,15]
[336821001,1725190280672,-500.0,0.00030821,15]
[336821002,1725190280681,-500.0,0.00030821,15]
[336821003,1725190280690,-661.85,0.00030821,15]
[336821004,1725190280700,-500.0,0.00030821,15]
[336821005,1725190280709,-500.0,0.00030821,15]
[336821006,1725190280718,-913.52,0.00030821,15]
[336821007,1725190280728,-835.91,0.00030821,14]
[336821008,1725190280737,-500.0,0.00030821,15]
[336821009,1725190280746,-724.67,0.00030821,7]
[336821010,1725190280755,-500.0,0.00030821,15]
[336821011,1725190280764,-648.99,0.00030821,15]
[336821012,1725190280773,-500.0,0.00030821,15]
[336821013,1725190280782,-235.31999324,0.00030821,15]
[336821014,1725190280792,-500.0,0.00030821,15]
[336821015,1725190280801,-500.0,0.00030821,15]
[336821016,1725190280810,-500.0,0.00030821,15]
[336821017,1725190280819,-500.0,0.00030821,15]
[336821018,1725190280829,-942.02,0.00030821,15]
[336821019,1725190280839,-500.0,0.00030821,15]
[336821020,1725190280848,-500.0,0.00030821,15]
[336821021,1725190280857,-416.61689695,0.00030821,15]
[336821022,1725190280866,-504.9,0.00030821,15]
[336821023,1725190280876,-1393.67,0.00030821,15]
[336821024,1725190280885,-572.0933022,0.00030821,15]
[336821025,1725190280894,-500.0,0.00030821,15]
[336821026,1725190280903,-500.0,0.00030821,15]
[336821027,1725190280913,-500.0,0.00030821,15]
[336821028,1725190280922,-500.0,0.00030821,15]
[336821029,1725190280931,-500.0,0.00030821,15]
[336821030,1725190280940,-500.0,0.00030821,15]
[336821031,1725190280949,-500.0,0.00030821,15]
[336821032,1725190280959,-500.0,0.00030821,15]
[336821033,1725190280968,-500.0,0.00030821,15]
[336821034,1725190280978,-500.0,0.00030821,15]
[336821035,1725190280987,-208.59094196,0.00030821,15]
[336821036,1725190280997,-696.53,0.00030821,15]
[336821037,1725190281006,-500.0,0.00030821,15]
[336821038,1725190281015,-500.0,0.00030821,15]
[336821039,1725190281026,-613.05,0.00030821,15]
[336821040,1725190281036,-747.54,0.00030821,15]
[336821041,1725190281046,-500.0,0.00030821,15]
[336821042,1725190281055,-391.05981609,0.00030821,15]
[336821043,1725190281064,-500.0,0.00030821,15]
[336821044,1725190281073,-500.0,0.00030821,15]
[336821045,1725190281082,-500.0,0.00030821,15]
[336821046,1725190281091,-500.0,0.00030821,15]
[336821047,1725190281100,-500.0,0.00030821,15]
[336821048,1725190281110,-805.77,0.00030821,15]
[336821049,1725190281119,-504.52320749,0.00030821,15]
[336821050,1725190281231,-500.0,0.00030821,15]
[336821051,1725190281241,-500.0,0.00030821,15]
[336821052,1725190281250,-500.0,0.00030821,15]
[336821053,1725190281260,-3000.0,0.0003083,5]
[336821054,1725190281269,-3000.0,0.0003084,5]
[336821055,1725190281280,-3000.0,0.0003085,5]
[336821056,1725190281290,-3000.0,0.0003086,5]
[336821057,1725190281299,-775.42,0.00030865,15]
[336821058,1725190281308,-959.6,0.00030865,15]
[336821059,1725190281317,-842.14,0.00030865,15]
[336821060,1725190281327,-621.06,0.00030865,15]
[336821061,1725190281338,-500.0,0.00030865,15]
[336821062,1725190281348,-327.59642563,0.00030865,15]
[336821063,1725190281358,-500.0,0.00030865,15]
[336821064,1725190281367,-764.71,0.00030865,15]
[336821065,1725190281376,-902.52,0.00030865,15]
[336821066,1725190281385,-504.7,0.00030865,15]
[336821067,1725190281395,-608.1,0.00030865,15]
[336821068,1725190281405,-500.0,0.00030865,15]
[336821069,1725190281414,-500.0,0.00030865,15]
[336821070,1725190281424,-500.0,0.00030865,15]
[336821071,1725190281433,-639.82,0.00030865,15]
[336821072,1725190281443,-1407.61,0.00030865,15]
[336821073,1725190281451,-3782.96,0.00030865,15]
[336821074,1725190281460,-500.0,0.00030865,15]
[336821075,1725190281470,-1698.8,0.00030865,15]
[336821076,1725190281480,-500.0,0.00030865,15]
[336821077,1725190281489,-618.8,0.00030865,15]
[336821078,1725190281499,-500.0,0.00030865,15]
[336821079,1725190281508,-581.82,0.00030865,15]
[336821080,1725190281517,-1590.55,0.00030865,15]
[336821081,1725190281529,-500.0,0.00030865,15]
[336821082,1725190281539,-307.75428315,0.00030865,2]
[336821083,1725190281549,-814.38,0.00030865,15]
[336821084,1725190281562,-578.66,0.00030865,15]
[336821085,1725190281572,-805.46,0.00030865,15]
[336821086,1725190281581,-500.0,0.00030865,15]
[336821087,1725190281590,-1051.47,0.00030865,15]
[336821088,1725190281600,-500.0,0.00030865,15]
[336821089,1725190281610,-525.21913786,0.00030865,15]
[336821090,1725190281619,-1759.62,0.00030865,15]
[336821091,1725190281628,-914.92,0.00030865,15]
[336821092,1725190281639,-681.67,0.00030865,15]
[336821093,1725190281649,-1238.85,0.00030865,15]
[336821094,1725190281658,-500.0,0.00030865,15]
[336821095,1725190281668,-500.0,0.00030865,15]
[336821096,1725190281677,-500.0,0.00030865,15]
[336821097,1725190281686,-3000.0,0.0003087,5]
[336821098,1725190281695,-3000.0,0.0003088,5]
[336821099,1725190281704,-308.643615,0.00030885,2]
[336821100,1725190281714,-246.245099,0.00030885,2]
[336821101,1725190281723,-294.262996,0.00030885,2]
[336821102,1725190281732,-212.273519,0.00030885,2]
[336821103,1725190281741,-356.725341,0.00030885,2]
[336821104,1725190281750,-387.605101,0.00030885,2]
[336821105,1725190281759,-294.262995,0.00030885,2]
[336821106,1725190281776,-212.273518,0.00030885,2]
[336821107,1725190281790,-294.262995,0.00030885,2]
[336821108,1725190281800,-254.480535,0.00030885,2]
[336821109,1725190281810,-294.262995,0.00030885,2]
[336821110,1725190281819,-3000.0,0.0003089,6]
[336821111,1725190281829,-3000.0,0.000309,6]
[336821112,1725190281839,-563.607,0.00030905,2]
[336821113,1725190281848,-152.831,0.00030905,2]
[336821114,1725190281858,-3000.0,0.0003091,6]
[336821115,1725190281867,-3000.0,0.0003092,6]
[336821116,1725190281877,-3000.0,0.0003093,6]
[336821117,1725190281887,-3000.0,0.0003094,6]
[336821118,1725190281897,-3000.0,0.0003095,6]
[336821119,1725190281906,-5021.96,0.00030955,15]
[336821120,1725190281916,-741.43,0.00030955,15]
[336821121,1725190281927,-1278.04,0.00030955,15]
[336821122,1725190281937,-960.88,0.00030955,15]
[336821123,1725190281946,-1153.21,0.00030955,15]
[336821124,1725190281956,-815.48,0.00030955,15]
[336821125,1725190281965,-21602.6,0.00030955,15]
[336821126,1725190281975,-1097.19,0.00030955,15]
[336821127,1725190281984,-500.0,0.00030955,15]
[336821128,1725190281994,-1235.74,0.00030955,15]
[336821129,1725190282004,-7508.14,0.00030955,15]
[336821130,1725190282015,-4510.39,0.00030955,15]
[336821131,1725190282025,-553.99,0.00030955,15]
[336821132,1725190282035,-5144.95,0.00030955,15]
[336821133,1725190282046,-500.0,0.00030956,15]
[336821134,1725190282056,-1750.1,0.00030956,15]
[336821135,1725190282066,-500.0,0.00030956,15]
[336821136,1725190282076,-2695.32,0.00030956,15]
[336821137,1725190282086,-4145.03,0.00030956,15]
[336821138,1725190282096,-4014.95,0.00030956,15]
[336821139,1725190282106,-500.0,0.00030956,15]
[336821140,1725190282115,-7452.19,0.00030956,15]
[336821141,1725190282125,-32741.1,0.00030956,8]
[336821142,1725190282134,-1410.77,0.00030956,15]
[336821143,1725190282144,-3313.62,0.00030956,15]
[336821144,1725190282157,-533.66,0.00030956,15]
[336821145,1725190282168,-1583.29,0.00030956,15]
[336821146,1725190282178,-2691.19,0.00030956,15]
[336821147,1725190282188,-2520.25,0.00030956,15]
[336821148,1725190282198,-891.84,0.00030956,15]
[336821149,1725190282208,-225.80865434,0.00030956,15]
[336821150,1725190292702,500.0,0.00024999,2]
[336821151,1725190292961,500.0,0.00025273,2]
[336821152,1725190293223,500.0,0.00025547,2]
[336821153,1725190293482,500.0,0.00025821,2]
[336821154,1725190293773,500.0,0.00026095,2]
[336821155,1725190294052,500.0,0.00026369,2]
[336821156,1725190294314,603.41047401,0.00026643,2]
[336821157,1725190308662,277.252531,0.00026285,2]
[336821158,1725190331528,500.0,0.00024999,2]
[336821166,1725191225119,-167.475366,0.00022832,2]
[336821167,1725191225142,-101.60816317,0.00023856,2]
[336821168,1725191230099,-149.39183683,0.00023856,2]
[336821169,1725191230121,-277.252532,0.00024191,2]
[336821170,1725191230143,-250.000001,0.00024542,2]
[336821171,1725191230164,-200.567433,0.00024884,2]
[336821172,1725191230185,-1479.23269005,0.00024899,2]
[336821173,1725191253109,-337.69674637,0.00024899,2]
[336821174,1725191253134,-300.0,0.00024998,2]
[336821175,1725191253156,-500.0,0.00024999,2]
[336821176,1725191253178,-500.0,0.00024999,2]
[336821177,1725191253201,-512.48922995,0.00024999,2]
[336821178,1725191253223,-500.0,0.00024999,2]